Cogmind - Beta 12 @@@ ROGUE MODE // 2023.03.29 @ 15:12:24 Player: Rohain Result: Destroyed by H-61 Shepherd with Heavy Assault Cannon Performance ------------- Evolutions (2) 1000 Regions Visited (7) 1400 Robots Destroyed (82) 410 Value Destroyed (2128) 2128 Prototype IDs (3) 60 Alien Tech Used (0) 0 Bonus (152) 152 TOTAL SCORE: 5150 Bonus ------- High Alert Combat Kills 152 Cogmind --------- Core Integrity 0/550 Matter 290/300 Energy 85/100 System Corruption 0% Temperature Cool (0) Movement Core (250) Ox4 Location -8/Materials Parts ------- > --- POWER (1) -------- (None) > --- PROPULSION (4) --- (None) > --- UTILITY (4) ------ Medium Storage Unit > --- WEAPON (2) ------- Makeshift Axe > --- INVENTORY (10) --- Aluminum Leg Small Storage Unit Improved Signal Interpreter Rocket Launcher Peak State ------------ > --- POWER ------------ Light Angular Momentum Engine > --- PROPULSION ------- Aluminum Leg Aluminum Leg Carbon-fiber Leg Improved Carbon-fiber Leg > --- UTILITY ---------- Heat Sink Improved Heat Sink Medium Storage Unit Improved Sensor Array > --- WEAPON ----------- Chainsword Makeshift Axe > --- INVENTORY -------- Light Nuclear Core Aluminum Leg Aluminum Leg Aluminum Leg Aluminum Leg Heat Sink Small Storage Unit Rocket Launcher Spear [Rating: 31] Favorites ----------- Power Ion Engine Engine Ion Engine Power Core Light Nuclear Core Propulsion Aluminum Leg Leg Aluminum Leg Utility Medium Storage Unit Device Heat Sink Storage Medium Storage Unit Protection Light Armor Plating Weapon Chainsword Energy Gun Medium Laser Ballistic Gun Improved Assault Rifle Launcher Rocket Launcher Impact Weapon Heavy Mace Slashing Weapon Chainsword Piercing Weapon Spear Build | -11 -10 -10 -9 -9 -9 -8 -8 ------- Run | Jun Mat Min Mat Min Exi Min Mat Slots Evolved 4 | . . . 2 . . . 2 Power . | . . . . . . . . Propulsion 2 | . . . 1 . . . 1 Utility 2 | . . . 1 . . . 1 Weapon . | . . . . . . . . Parts Attached 70 | 7 6 2 12 10 . 6 27 Power 7 | 1 . . 1 2 . 2 1 Engine 5 | 1 . . 1 2 . 1 . Core 2 | . . . . . . 1 1 Reactor . | . . . . . . . . Propulsion 32 | 2 3 1 6 5 . 3 12 Treads . | . . . . . . . . Leg 32 | 2 3 1 6 5 . 3 12 Wheel . | . . . . . . . . Hover . | . . . . . . . . Flight . | . . . . . . . . Utility 13 | 1 3 . 2 2 . 1 4 Device 6 | . 2 . 1 1 . 1 1 Storage 2 | 1 1 . . . . . . Processor . | . . . . . . . . Hackware . | . . . . . . . . Protection 5 | . . . 1 1 . . 3 Artifact . | . . . . . . . . Weapon 18 | 3 . 1 3 1 . . 10 Energy Gun 7 | 3 . 1 1 . . . 2 Energy Cannon . | . . . . . . . . Ballistic Gun 1 | . . . 1 . . . . Ballistic Cannon . | . . . . . . . . Launcher 2 | . . . . . . . 2 Special Weapon . | . . . . . . . . Impact Weapon 1 | . . . . . . . 1 Slashing Weapon 4 | . . . 1 1 . . 2 Piercing Weapon 3 | . . . . . . . 3 Special Melee Weapon . | . . . . . . . . Unidentified Prototypes 3 | . . . 1 . . . 2 Parts Lost 25 | . . 1 6 3 . . 15 Power 3 | . . . . 1 . . 2 Propulsion 10 | . . . 2 1 . . 7 Utility 6 | . . . 1 1 . . 4 Weapon 6 | . . 1 3 . . . 2 Highest Loss Streak 7 | . . 1 5 3 . . 7 To Critical Strikes . | . . . . . . . . Average Slot Usage (%) 91 | . 96 100 92 93 88 95 84 Engine 10 | . 14 14 10 10 11 9 6 Leg 31 | . 28 28 31 32 33 33 32 Device 11 | . 11 14 17 11 11 18 8 Storage 11 | . 14 14 11 11 11 11 9 Protection 3 | . . . 1 5 . . 8 Energy Gun 8 | . 28 28 14 . . . . Slashing Weapon 11 | . . . 3 21 22 22 12 Piercing Weapon 1 | . . . . . . . 4 Naked Turns . | . . . . . . . . Heaviest Build 44 | 14 20 20 25 30 22 27 44 Greatest Support 53 | 20 20 20 33 41 38 43 53 Greatest Overweight (x) 4 | . . . . . . . 4 Average Overweight (x) . | . . . . . . . . Largest Inventory Capacity 10 | 8 10 10 10 10 10 10 10 Average Capacity 9 | 7 8 10 10 10 10 10 10 Most Carried 10 | 1 6 8 8 10 9 10 10 Average Carried 7 | . 2 6 6 9 9 9 8 Final Capacity 10 | 8 10 10 10 10 10 10 10 Final Carried 10 | 1 6 8 6 9 9 10 4 Class Distribution -------------------- 73% | Mutant 26% | Scavenger-Mutant Dominant Class ---------------- Mutant | -10/Materials Mutant | -10/Mines Scavenger-Mutant | -9/Materials Mutant | -9/Mines Mutant | -9/Exiles Scavenger-Mutant | -8/Mines Mutant | -8/Materials Resources | -11 -10 -10 -9 -9 -9 -8 -8 ----------- Run | Jun Mat Min Mat Min Exi Min Mat Matter Collected 895 | 97 233 20 90 110 . 60 285 Remotely . | . . . . . . . . Salvage Created 2935 | . 409 54 174 303 . 472 1523 Parts 161 | . 21 1 11 17 . 13 98 Haulers Intercepted 8 | . 2 . . . . . 6 Recyclers Shooed . | . . . . . . . . Parts Field Recycled . | . . . . . . . . Retrieved Matter . | . . . . . . . . Parts Self-Destructed . | . . . . . . . . Prevented . | . . . . . . . . Kills | -11 -10 -10 -9 -9 -9 -8 -8 ------- Run | Jun Mat Min Mat Min Exi Min Mat Combat Hostiles Destroyed 59 | . 6 1 4 8 . 7 33 Melee 42 | . . . 2 8 . 7 25 Guns 9 | . 6 1 2 . . . . AOE 6 | . . . . . . . 6 Classes Destroyed 12 | . 6 . 1 1 . 1 3 Worker 4 | . 1 . . 1 . . 2 Builder 3 | . 1 . . . . . 2 Tunneler 2 | . . . . 1 . 1 . Hauler 8 | . 2 . . . . . 6 Recycler 1 | . . . . . . 1 . Operator 1 | . . . . . . . 1 Watcher 4 | . 1 . . . . . 3 Swarmer 19 | . 1 . 1 3 . . 14 Grunt 30 | . 5 1 1 5 . 7 11 Brawler 1 | . . . . . . . 1 Sentry 7 | . . . 2 . . . 5 Hunter 2 | . . . . . . . 2 Best Kill Streak 7 | . 3 1 2 4 . 3 7 Combat Bots Only 5 | . 2 1 2 3 . 3 5 Max Kills in Single Turn 3 | . 1 1 1 1 . 1 3 Gunslinging . | . . . . . . . . Exploded 3 | . . . . . . . 3 Melee 1 | . . . 1 1 . 1 1 Uniques/NPCs Destroyed . | . . . . . . . . Combat | -11 -10 -10 -9 -9 -9 -8 -8 -------- Run | Jun Mat Min Mat Min Exi Min Mat Damage Taken 4086 | . 305 122 638 481 . 316 2224 Core 1016 | . 87 18 135 66 . 120 590 Absorbed by Shields . | . . . . . . . . Regen/Repaired (Parts) 49 | . . . 49 . . . . Core Remaining (%) 59 | 100 . 58 . . . 19 . Volleys Fired 56 | . 31 9 11 . . . 5 Largest 2 | . 2 2 2 . . . 1 Hottest 100 | . 100 100 90 . . . 33 Shots Fired 104 | . 62 17 20 . . . 5 Gun 99 | . 62 17 20 . . . . Cannon . | . . . . . . . . Launcher 5 | . . . . . . . 5 Special . | . . . . . . . . Kinetic . | . . . . . . . . Thermal 98 | . 62 17 19 . . . . Explosive 5 | . . . . . . . 5 Electromagnetic 1 | . . . 1 . . . . Robot Hit Streak 9 | . 7 2 9 . . . 1 Robot Miss Streak 3 | . 2 3 3 . . . 1 Penetration Max . | . . . . . . . . Secondary Targets . | . . . . . . . . Shots Hit Robots 215 | . 45 6 19 18 . 26 101 Core Hits 92 | . 20 3 7 6 . 10 46 Critical Kills . | . . . . . . . . Critical Parts Destroyed 1 | . . . . . . . 1 Critical Strikes 25 | . 7 2 1 1 . 3 11 Burn 9 | . 7 2 . . . . . Smash 1 | . . . . . . . 1 Sever 13 | . . . 1 1 . 3 8 Impale 2 | . . . . . . . 2 Melee Attacks 200 | . . . 9 28 . 30 133 Impact 8 | . . . . . . . 8 Slashing 171 | . . . 9 28 . 30 104 Piercing 21 | . . . . . . . 21 Sneak Attacks 16 | . . . . 2 . 4 10 Combat Hostiles 1 | . . . . . . 1 . Follow-up Attacks 26 | . . . . 5 . 7 14 Damage Inflicted 7229 | . 577 77 348 707 . 1108 4412 Guns 806 | . 577 74 155 . . . . Cannons . | . . . . . . . . Explosions 642 | . . . . . . . 642 Melee 5778 | . . . 193 707 . 1108 3770 Ramming 3 | . . 3 . . . . . Kinetic . | . . . . . . . . Thermal 806 | . 577 74 155 . . . . Explosive 642 | . . . . . . . 642 Electromagnetic . | . . . . . . . . Impact 196 | . . . . . . . 196 Slashing 5017 | . . . 193 707 . 1108 3009 Piercing 565 | . . . . . . . 565 Highest Corruption . | . . . . . . . . Average Corruption . | . . . . . . . . Corruption Purged . | . . . . . . . . Corruption Blocked . | . . . . . . . . Overload Shots . | . . . . . . . . Overflow Damage 556 | . . . 16 114 . 107 319 Projectiles . | . . . . . . . . Explosions 58 | . . . . . . . 58 Melee 498 | . . . 16 114 . 107 261 Knockbacks 1 | . . . . . . . 1 Impact 1 | . . . . . . . 1 Kinetic . | . . . . . . . . Secondary . | . . . . . . . . Self-Inflicted Damage . | . . . . . . . . Shots . | . . . . . . . . Rammed . | . . . . . . . . Targets Rammed 1 | . . 1 . . . . . Kicked 1 | . . 1 . . . . . Crushed . | . . . . . . . . Highest Temperature 184 | . 184 46 9 . . . 7 Average Temperature 44 | . 54 24 9 . . . 3 Received Heat Transfer 1368 | . 144 72 213 138 . 162 639 Siege Activations . | . . . . . . . . Robots Corrupted . | . . . . . . . . Combat Hostiles . | . . . . . . . . Parts Fried 4 | . . . . . . . 4 Impact Corruptions 3 | . . . . . . . 3 Robots Melted 1 | . 1 . . . . . . Combat Hostiles . | . . . . . . . . Parts Melted 10 | . 9 . 1 . . . . Heat Transferred 2988 | . 2220 370 398 . . . . Parts Sabotaged . | . . . . . . . . Parts Stolen . | . . . . . . . . Parts Stripped . | . . . . . . . . Power Chain Reactions . | . . . . . . . . Missiles Intercepted . | . . . . . . . . Alert | -11 -10 -10 -9 -9 -9 -8 -8 ------- Run | Jun Mat Min Mat Min Exi Min Mat Peak Influence 682 | . 186 66 132 160 . 205 682 Initial 31 | . . 31 . . . . 29 Average 167 | . 89 42 68 37 . 88 391 Maximum Alert Level 2 | . . . . . . 1 2 Low Security (%) 71 | 100 100 100 100 100 . 86 17 Level 1 12 | . . . . . . 13 33 Level 2 15 | . . . . . . . 49 Level 3 . | . . . . . . . . Level 4 . | . . . . . . . . Level 5 . | . . . . . . . . High Security . | . . . . . . . . Max Security . | . . . . . . . . Squads Dispatched 7 | . 2 . . . . . 5 Investigation 2 | . 1 . . . . . 1 Extermination . | . . . . . . . . Reinforcement 4 | . 1 . . . . . 3 Assault 1 | . . . . . . . 1 Garrison . | . . . . . . . . Intercept . | . . . . . . . . Searches Triggered . | . . . . . . . . Construction Impeded . | . . . . . . . . Haulers Reinforced . | . . . . . . . . Active Scanning Responses . | . . . . . . . . Cargo Convoy Interrupts . | . . . . . . . . Stealth | -11 -10 -10 -9 -9 -9 -8 -8 --------- Run | Jun Mat Min Mat Min Exi Min Mat Distress Signals 6 | . . 1 1 . . . 4 Communications Jammed . | . . . . . . . . Distress Signals . | . . . . . . . . Times Spotted 105 | . 15 2 11 8 . 12 57 Peak Tracking Total 7 | . 5 2 5 3 . 3 7 Tactical Retreats 17 | . 4 1 . . . 4 8 Traps | -11 -10 -10 -9 -9 -9 -8 -8 ------- Run | Jun Mat Min Mat Min Exi Min Mat Traps Triggered 2 | . 1 . . . . . 1 Indirectly . | . . . . . . . . Trap Hack Attempts . | . . . . . . . . Triggered . | . . . . . . . . Disarmed . | . . . . . . . . Reprogrammed . | . . . . . . . . Reused . | . . . . . . . . Traps Extracted . | . . . . . . . . Installed . | . . . . . . . . Triggered . | . . . . . . . . Machines | -11 -10 -10 -9 -9 -9 -8 -8 ---------- Run | Jun Mat Min Mat Min Exi Min Mat Machines Disabled . | . . . . . . . . Max in Single Turn . | . . . . . . . . Machines Repaired . | . . . . . . . . Machines Sabotaged . | . . . . . . . . Overloaded Fab Kills . | . . . . . . . . Hacking | -11 -10 -10 -9 -9 -9 -8 -8 --------- Run | Jun Mat Min Mat Min Exi Min Mat Machines Accessed 9 | . 4 . 1 1 1 . 2 Terminals 6 | . 4 . . . . . 2 Fabricators . | . . . . . . . . Repair Stations 1 | . . . 1 . . . . Recycling Units . | . . . . . . . . Scanalyzers . | . . . . . . . . Garrison Access . | . . . . . . . . Total Hacks 21 | . 10 . 2 1 1 . 7 Successful 10 | . 3 . 2 1 1 . 3 Failed 11 | . 7 . . . . . 4 Catastrophic . | . . . . . . . . Database Lockouts . | . . . . . . . . Manual 14 | . 7 . . . . . 7 Terminals 17 | . 10 . . . . . 7 Fabricators . | . . . . . . . . Repair Stations 2 | . . . 2 . . . . Recycling Units . | . . . . . . . . Scanalyzers . | . . . . . . . . Garrison Access . | . . . . . . . . Terminal Hacks 5 | . 1 . . 1 1 . 2 Record 1 | . . . . . 1 . . Robot Analysis 1 | . 1 . . . . . . Open Door 1 | . . . . 1 . . . Alert Level 1 | . . . . . . . 1 Unreport Threat 1 | . . . . . . . 1 Fabricator Hacks . | . . . . . . . . Repair Station Hacks 2 | . . . 2 . . . . Scan Component 1 | . . . 1 . . . . Repair 1 | . . . 1 . . . . Recycling Unit Hacks . | . . . . . . . . Scanalyzer . | . . . . . . . . Garrison Access Hacks . | . . . . . . . . Unauthorized Hacks 3 | . 2 . . . . . 1 Terminals 3 | . 2 . . . . . 1 Botnet 3 | . 2 . . . . . 1 Fabricators . | . . . . . . . . Repair Stations . | . . . . . . . . Recycling Units . | . . . . . . . . Scanalyzers . | . . . . . . . . Garrison Access . | . . . . . . . . Data Cores Recovered . | . . . . . . . . Used . | . . . . . . . . Hacking Detections 5 | . 3 . . . . . 2 Full Trace Events 1 | . . . . . . . 1 Feedback Events . | . . . . . . . . Feedback Blocked . | . . . . . . . . Robot Schematics Acquired . | . . . . . . . . Robots Built . | . . . . . . . . Authchips . | . . . . . . . . Time . | . . . . . . . . Total Robot Build Rating . | . . . . . . . . Part Schematics Acquired . | . . . . . . . . Parts Built . | . . . . . . . . Authchips . | . . . . . . . . Time . | . . . . . . . . Total Part Build Rating . | . . . . . . . . Parts Repaired 1 | . . . 1 . . . . Time 26 | . . . 26 . . . . Parts Recycled . | . . . . . . . . Recycled Matter . | . . . . . . . . Retrieved Matter . | . . . . . . . . Retrieved Components . | . . . . . . . . Parts Scanalyzed . | . . . . . . . . Part Schematics Acquired . | . . . . . . . . Parts Damaged . | . . . . . . . . Bothacking | -11 -10 -10 -9 -9 -9 -8 -8 ------------ Run | Jun Mat Min Mat Min Exi Min Mat Used RIF Installer . | . . . . . . . . Robots Hacked . | . . . . . . . . Non-combat . | . . . . . . . . Combat . | . . . . . . . . Robot Hacks Applied . | . . . . . . . . Relay Couplers Released . | . . . . . . . . Fabnet Peak Effective % . | . . . . . . . . Robots Rewired . | . . . . . . . . Allies Hacked . | . . . . . . . . Hacks Repelled . | . . . . . . . . Allies | -11 -10 -10 -9 -9 -9 -8 -8 -------- Run | Jun Mat Min Mat Min Exi Min Mat Total Allies . | . . . . . . . . Largest Group . | . . . . . . . . Highest-Rated Group . | . . . . . . . . Highest-Rated Ally . | . . . . . . . . Total Orders . | . . . . . . . . Ally Attacks . | . . . . . . . . Total Damage . | . . . . . . . . Kills . | . . . . . . . . Allies Corrupted . | . . . . . . . . Allies Melted . | . . . . . . . . Intel | -11 -10 -10 -9 -9 -9 -8 -8 ------- Run | Jun Mat Min Mat Min Exi Min Mat Robot Analysis Total 1 | . 1 . . . . . . Derelict Logs Recovered . | . . . . . . . . Drone Launches . | . . . . . . . . Drone Recoveries . | . . . . . . . . Exploration | -11 -10 -10 -9 -9 -9 -8 -8 ------------- Run | Jun Mat Min Mat Min Exi Min Mat Turns Passed 4263 | 62 546 440 416 734 378 436 1251 Spaces Moved 2779 | 46 358 331 252 518 313 287 674 Core 10 | 5 . . . . . . 5 Treads . | . . . . . . . . Legs 2769 | 41 358 331 252 518 313 287 669 Wheels . | . . . . . . . . Hover . | . . . . . . . . Flight . | . . . . . . . . Fastest Speed 50 | 50 120 120 120 120 120 120 120 Average Speed 120 | 112 120 120 120 120 120 120 120 Slowest Speed 250 | 120 120 120 120 120 120 120 250 Overloaded Moves . | . . . . . . . . Propulsion Burnouts . | . . . . . . . . Robots Hopped . | . . . . . . . . Cave-ins Triggered . | . . . . . . . . Exploration Rate (%) 55 | 4 78 79 24 78 63 60 56 Regions Visited 7 Branch Regions 4 Pre-discovered Areas 1 | . . 1 . . . . . Known Exits Taken . | . . . . . . . . Unknown Exits Taken 7 | 1 1 1 1 1 1 1 . Scrap Searched 3 | . . 1 . 1 . 1 . Spaces Dug . | . . . . . . . . Terrain Destroyed 40 | . . . . . . . 40 Melee . | . . . . . . . . Projectile . | . . . . . . . . AOE 40 | . . . . . . . 40 Terrain Rammed . | . . . . . . . . Walls Destroyed . | . . . . . . . . Machines Disabled . | . . . . . . . . Actions | -11 -10 -10 -9 -9 -9 -8 -8 --------- Run | Jun Mat Min Mat Min Exi Min Mat Total 3336 | 54 409 356 333 596 315 346 927 Wait 233 | . 15 12 49 41 . 28 88 Move 2772 | 45 357 330 251 517 312 286 674 Hop . | . . . . . . . . Pick Up 9 | 1 . 2 1 2 . . 3 Fast Attach 22 | 6 1 . 4 2 . 1 8 Attach 18 | 1 . 1 5 3 . . 8 Detach 2 | 1 . . . 1 . . . Swap 30 | . 5 1 3 5 . 5 11 Drop 22 | . . . . 3 . 4 15 Fire 56 | . 31 9 11 . . . 5 Melee 168 | . . . 9 22 . 22 115 Ram . | . . . . . . . . Kick 1 | . . 1 . . . . . Crush . | . . . . . . . . Escape Stasis . | . . . . . . . . Rewire 3 | . . . . . 3 . . Trap . | . . . . . . . . Miscellaneous . | . . . . . . . . Route ------- -11/Junkyard -10/Materials (discovered 4 exits: *Mat x2 / [*Min x2]) -10/Mines (discovered 2 exits: *Mat x2) -9/Materials (discovered 2 exits: *Min / [*Sto]) -9/Mines -9/Exiles -8/Mines -8/Materials (discovered 1 exit: [*Fac]) History --------- Turn | Location | Event 20 | -11/Junkyard | Discovered new exit (range 15) 63 | -11/Junkyard | Entered Materials 137 | -10/Materials | Discovered new exit (range 10) 309 | -10/Materials | Build established: Mutant 323 | -10/Materials | Discovered new exit (range 10) 389 | -10/Materials | Discovered new exit (range 5) 545 | -10/Materials | Discovered new exit (range 9) 609 | -10/Materials | Entered Mines 657 | -10/Mines | A weapon hastily lodged in a ceiling crevice suddenly fell to the ground 795 | -10/Mines | Discovered new exit (range 9) 851 | -10/Mines | Learned location of Storage (-9) 1027 | -10/Mines | Received a Rocket Launcher from a helpful Derelict 1044 | -10/Mines | Discovered new exit (range 3) 1049 | -10/Mines | Entered Materials 1049 | -9/Materials | Evolved 2 slots: Propulsion x1, Utility x1 1146 | -9/Materials | Repaired Ion Engine 1300 | -9/Materials | Discovered new exit (range 15) 1366 | -9/Materials | Lost 5 parts (1n1u3w) 1454 | -9/Materials | Discovered new exit (range 8) 1465 | -9/Materials | Entered Mines 1487 | -9/Mines | Met a Derelict who couldn't figure out how to use a Trap Extractor 1640 | -9/Mines | Deemed a non-threat by the Exiles lab entrance 1640 | -9/Mines | Discovered new exit (range 5) 1760 | -9/Mines | Excavation squad dispatched 1760 | -9/Mines | A large section of the Mines collapsed 1818 | -9/Mines | Core integrity fell below 50% 1848 | -9/Mines | Lost 3 parts (1p1n1u) 2199 | -9/Mines | Entered Exiles 2229 | -9/Exiles | Met 8R-AWN 2250 | -9/Exiles | Met EX-HEX 2297 | -9/Exiles | Met EX-DEC 2488 | -9/Exiles | Met EX-BIN 2562 | -9/Exiles | Discovered new exit (range 14) 2577 | -9/Exiles | Entered Mines 2986 | -8/Mines | Core integrity fell below 20% 3007 | -8/Mines | Discovered new exit (range 5) 3010 | -8/Mines | Build established: Scavenger-Mutant 3013 | -8/Mines | Entered Materials 3013 | -8/Materials | Evolved 2 slots: Propulsion x1, Utility x1 3813 | -8/Materials | First assault squad dispatched 3935 | -8/Materials | Lost 4 parts (1p1n2u) 4176 | -8/Materials | Core integrity fell below 50% 4191 | -8/Materials | Build established: Mutant 4233 | -8/Materials | Discovered new exit (range 16) 4255 | -8/Materials | Core integrity fell below 20% 4264 | -8/Materials | Destroyed by H-61 Shepherd with Heavy Assault Cannon Last Messages --------------- 04232_ Knocked back. 04233_ EXIT=FOUND 04235_ Spear destroyed. 04235_ Knocked back. 04240_ Penetrated by Slug. 04240_ Lgt. Nuclear Core destroyed. 04244_ T-07 Excavator is excavating. 04247_ H-61 Shepherd calls for reinforcements. 04247_ ALERT: Hostile activity reported, dispatching reinforcements to area. 04247_ Penetrated by Slug. 04247_ Carbon-fiber Leg destroyed. 04247_ Knocked back. 04250_ Aluminum Leg destroyed. 04250_ Critical hit (Blast). 04250_ Knocked back. 04252_ Aluminum Leg destroyed. 04252_ Knocked back. 04259_ Hvy. Mace blasted off. 04259_ Knocked back. Map ----- +----------------------------------------------------+ | ????????????????????????????????? | | ????????????????????????????????? | | ????????????????????????????????? | | ????????????????????????????????? | | ????????????????????????????????? | | ????????????????????????????????? | | ????????????????????????????????? | | ????????????????????????????????? | | ????????????????????????????????? | | ????????????????????????????????? | | ????????????????????????????????? | | ????????????????????????????????? | | ????????????????????????????????? | | ????????????????????????????????? | | ????????????????????????????????? | | ????????????????????????????????? | | ????????????????????????????????? | | ???????????????????????#####????? | | ???????????????????????# #????? | | ???????????????????????# < #????? | | ???????????????????????# #????? | | ???????????????????????+ #????? | | ???????????????????????# ##???? | | ???????????????????????# %#???? | | ???????????????????????# H #????? | | ???????????????????????# @ #????? | | ???????????????????????# / #####? | | ???????????????????????# %%# #? | | ???????????????????????# % #? | | ???????????????????????# # # | | ???????????????????????# #####? | | ??????????????????????#; #????? | | ??????????????????????## %#????? | | ???????????????????????# %#####? | | ???????????????????????# # # | | ???????????????????????+ # | | ???????????????????????# # # | | ???????????????????????# %## # | | ???????????????????????# #?#### | | ???????????????????????# #????? | | ???????????????????????# #????? | | ???????????????????????# %#????? | | ???????????????????????# #????? | | ?########??????????????# #????? | | ?# #???############ #????? | | ?# #???# ] ## ##???? | | ?# #???#! "T" # %#???? | | ?# #???# ! # #???? | | ?# #???# " #???? | | ??? ????# """ """ # #???? | +----------------------------------------------------+ Best States ------------- Heat Dissipation 55 Energy Generation 18 Energy Capacity 290 Matter Stores 300 Matter Capacity 300 Sight Range 16 Robot Scan Range 15 Terrain Scan Density 10 Armor Coverage 750 Evasion (%) 55 Trap Extractor Capacity 6 Item Schematics ----------------- None Robot Schematics ------------------ None Fabricated ------------ Nothing Alien Tech Used ----------------- None Achievements -------------- None Challenges ------------ None Game ------ Seed HackingMagneticRipper Manual? 0 Play Time 00:32:42 Cumulative 31.7 hours Start 2023.03.29 @ 14:43:50 End 2023.03.29 @ 15:12:24 Sessions 1 Manual Loads 0 Difficulty Rogue Special Mode None Game No. 46 Rogue 30 Adventurer 16 Explorer 0 Win Type - Total 0 Types 0/0/0/0/0/0/0/0/0 Lore% 20 Gallery% 35 Achievement% 32 Wizard Run 0 Options --------- ASCII 0 Keyboard 0 Movement Mouse Keybinds 0 Fullscreen 0 Font 18/SmallcapsGlow Map View 66x50 Tactical HUD 1 Map Filters NONE Filters NONE Steam X RUN: 80fa8554-9348-4202-bc22-fad347b3f085